fUST/lending_fUST_20250206
["ID","MTS","AMOUNT","RATE_DAILY","PERIOD"]
[351785473,1738787448665,-500.0,0.00013835,2]
[351785474,1738787448675,-508.1595289,0.00013835,2]
[351785475,1738787448685,-1452.83,0.00013835,2]
[351785476,1738787448695,-500.0,0.00013835,2]
[351785477,1738787448705,-500.0,0.00013835,2]
[351785478,1738787448715,-209.709451,0.00013835,2]
[351785479,1738787448726,-500.0,0.00013835,2]
[351785480,1738787448736,-500.0,0.00013835,2]
[351785481,1738787448745,-500.0,0.00013835,2]
[351785482,1738787448756,-500.0,0.00013835,2]
[351785483,1738787448766,-500.0,0.00013835,2]
[351785484,1738787448776,-500.0,0.00013835,2]
[351785485,1738787448785,-500.0,0.00013835,2]
[351785486,1738787448795,-500.0,0.00013835,2]
[351785487,1738787448805,-854.89,0.00013835,2]
[351785488,1738787448815,-500.0,0.00013835,2]
[351785489,1738787448824,-722.62,0.00013835,2]
[351785490,1738787448834,-500.0,0.00013835,2]
[351785491,1738787448843,-528.05,0.00013835,2]
[351785492,1738787448853,-608.04,0.00013835,2]
[351785493,1738787448863,-1070.33,0.00013835,2]
[351785494,1738787448872,-500.0,0.00013835,2]
[351785495,1738787448882,-1078.15,0.00013835,2]
[351785496,1738787448891,-502.51161419,0.00013835,2]
[351785497,1738787448901,-966.15,0.00013835,2]
[351785498,1738787448911,-2468.07,0.00013835,2]
[351785499,1738787448920,-502.53341103,0.00013835,2]
[351785500,1738787448929,-500.0,0.00013835,2]
[351785501,1738787448939,-500.0,0.00013835,2]
[351785502,1738787448948,-500.0,0.00013835,2]
[351785503,1738787448957,-1161.57,0.00013835,2]
[351785504,1738787448967,-1978.16,0.00013835,2]
[351785505,1738787448977,-500.0,0.00013835,2]
[351785506,1738787448987,-500.0,0.00013835,2]
[351785507,1738787448997,-868.59,0.00013835,2]
[351785508,1738787449007,-500.0,0.00013835,2]
[351785509,1738787449017,-500.0,0.00013835,2]
[351785510,1738787449027,-500.0,0.00013835,2]
[351785511,1738787449038,-500.0,0.00013835,2]
[351785512,1738787449047,-4765.96,0.00013835,2]
[351785513,1738787449058,-500.0,0.00013835,2]
[351785514,1738787449068,-559.11612596,0.00013835,2]
[351785515,1738787449078,-500.0,0.00013835,2]
[351785516,1738787449088,-551.5,0.00013835,2]
[351785517,1738787449097,-500.0,0.00013835,2]
[351785518,1738787449107,-151.0,0.00013835,2]
[351785519,1738787449116,-500.0,0.00013835,2]
[351785520,1738787449126,-500.0,0.00013835,2]
[351785521,1738787449135,-516.87827575,0.00013835,2]
[351785522,1738787449145,-500.0,0.00013835,2]
[351785523,1738787449155,-500.0,0.00013835,2]
[351785524,1738787449165,-500.0,0.00013835,2]
[351785525,1738787449175,-500.0,0.00013835,2]
[351785526,1738787449185,-500.0,0.00013835,2]
[351785527,1738787449194,-500.0,0.00013835,2]
[351785528,1738787449203,-500.0,0.00013835,2]
[351785529,1738787449213,-1234.03,0.00013835,2]
[351785530,1738787449223,-500.0,0.00013835,2]
[351785531,1738787449232,-500.0,0.00013835,2]
[351785532,1738787449242,-500.0,0.00013835,2]
[351785533,1738787449253,-500.0,0.00013835,2]
[351785534,1738787449263,-500.0,0.00013835,2]
[351785535,1738787449274,-1584.42,0.00013835,2]
[351785536,1738787449283,-36218.37,0.00013835,2]
[351785537,1738787449293,-500.0,0.00013835,2]
[351785538,1738787449302,-5530.87,0.00013835,2]
[351785539,1738787449311,-837.35,0.00013835,2]
[351785540,1738787449322,-580.98,0.00013835,2]
[351785541,1738787449331,-500.0,0.00013835,2]
[351785542,1738787449341,-500.0,0.00013835,2]
[351785543,1738787449351,-500.0,0.00013835,2]
[351785544,1738787449361,-3387.68,0.00013835,2]
[351785545,1738787449370,-556.04,0.00013835,2]
[351785546,1738787449380,-500.0,0.00013835,2]
[351785547,1738787449389,-500.0,0.00013835,2]
[351785548,1738787449399,-4526.29,0.00013835,2]
[351785549,1738787449408,-500.0,0.00013835,2]
[351785550,1738787449418,-689.78,0.00013835,2]
[351785551,1738787449427,-1120.69,0.00013835,2]
[351785552,1738787449437,-500.0,0.00013835,2]
[351785553,1738787449446,-721.69,0.00013835,2]
[351785554,1738787449456,-500.0,0.00013835,2]
[351785555,1738787449465,-761.99,0.00013835,2]
[351785556,1738787449475,-625.08,0.00013835,2]
[351785557,1738787449485,-500.0,0.00013835,2]
[351785558,1738787449494,-725.8,0.00013835,2]
[351785559,1738787449504,-500.0,0.00013835,2]
[351785560,1738787449513,-500.0,0.00013835,2]
[351785561,1738787449527,-500.0,0.00013835,2]
[351785562,1738787449537,-1127.63,0.00013835,2]
[351785563,1738787449547,-151.0,0.00013835,2]
[351785564,1738787449556,-500.0,0.00013835,2]
[351785565,1738787449567,-500.0,0.00013835,2]
[351785566,1738787449577,-500.0,0.00013835,2]
[351785567,1738787449587,-500.0,0.00013835,2]
[351785568,1738787449597,-500.0,0.00013835,2]
[351785569,1738787449609,-585.53,0.00013835,2]
[351785570,1738787449620,-500.0,0.00013835,2]
[351785571,1738787449630,-2927.42,0.00013835,2]
[351785572,1738787449639,-500.0,0.00013835,2]
[351785573,1738787449649,-500.0,0.00013835,2]
[351785574,1738787449659,-500.0,0.00013835,2]
[351785575,1738787449673,-500.0,0.00013835,2]
[351785576,1738787449683,-684.69,0.00013835,2]
[351785577,1738787449693,-989.99,0.00013835,2]
[351785578,1738787449703,-627.61,0.00013835,2]
[351785579,1738787449712,-500.0,0.00013835,2]
[351785580,1738787449722,-500.0,0.00013835,2]
[351785581,1738787449731,-500.0,0.00013835,2]
[351785582,1738787449741,-770.96,0.00013835,2]
[351785583,1738787449751,-500.0,0.00013835,2]
[351785584,1738787449761,-7616.81,0.00013835,2]
[351785585,1738787449771,-611.65,0.00013835,2]
[351785586,1738787449780,-500.0,0.00013835,2]
[351785587,1738787449790,-3152.82,0.00013835,2]
[351785588,1738787449800,-500.0,0.00013835,2]
[351785589,1738787449810,-709.08,0.00013835,2]
[351785590,1738787449822,-699.54,0.00013835,2]
[351785591,1738787449832,-311.54707333,0.00013835,2]
[351785592,1738787449842,-500.0,0.00013835,2]
[351785593,1738787449852,-500.0,0.00013835,2]
[351785594,1738787449862,-1000.0,0.00013835,2]
[351785595,1738787449871,-500.0,0.00013835,2]
[351785596,1738787449881,-500.0,0.00013835,2]
[351785597,1738787449891,-2752.12,0.00013835,2]
[351785598,1738787449900,-2051.75,0.00013835,2]
[351785599,1738787449910,-625.74218619,0.00013835,2]
[351785600,1738787449919,-540.35,0.00013835,2]
[351785601,1738787449929,-1657.44,0.00013835,2]
[351785602,1738787449938,-728.64,0.00013835,2]
[351785603,1738787449948,-638.6,0.00013835,2]
[351785604,1738787449957,-500.0,0.00013835,2]
[351785605,1738787449967,-500.0,0.00013835,2]
[351785606,1738787449977,-577.35,0.00013835,2]
[351785607,1738787449987,-3817.1,0.00013835,2]
[351785608,1738787449996,-500.0,0.00013835,2]
[351785609,1738787450005,-1710.33,0.00013835,2]
[351785610,1738787450015,-151.0,0.00013835,2]
[351785611,1738787450026,-500.0,0.00013835,2]
[351785612,1738787450036,-151.0,0.00013835,2]
[351785613,1738787450046,-151.0,0.00013835,2]
[351785614,1738787450055,-500.0,0.00013835,2]
[351785615,1738787450064,-500.0,0.00013835,2]
[351785616,1738787450077,-500.0,0.00013835,2]
[351785617,1738787450086,-890.85,0.00013835,2]
[351785618,1738787450096,-500.0,0.00013835,2]
[351785619,1738787450106,-866.21,0.00013835,2]
[351785620,1738787450115,-227.3,0.00013835,2]
[351785621,1738787450125,-848.41,0.00013835,2]
[351785622,1738787450139,-500.0,0.00013835,2]
[351785623,1738787450149,-500.0,0.00013835,2]
[351785624,1738787450159,-500.0,0.00013835,2]
[351785625,1738787450169,-500.0,0.00013835,2]
[351785626,1738787450178,-500.0,0.00013835,2]
[351785627,1738787450187,-572.01539065,0.00013835,2]
[351785628,1738787450197,-581.56,0.00013835,2]
[351785629,1738787450207,-500.0,0.00013835,2]
[351785630,1738787450217,-500.0,0.00013835,2]
[351785631,1738787450226,-5213.56,0.00013835,2]
[351785632,1738787450235,-568.78,0.00013835,2]
[351785633,1738787450245,-265.34416505,0.00013835,2]
[351785634,1738787450255,-1657.6,0.00013835,2]
[351785635,1738787450265,-500.0,0.00013835,2]
[351785636,1738787450276,-500.0,0.00013835,2]
[351785637,1738787450286,-537.95,0.00013835,2]
[351785638,1738787450296,-500.0,0.00013835,2]
[351785639,1738787450306,-1180.41,0.00013835,2]
[351785640,1738787450315,-2950.62,0.00013835,2]
[351785641,1738787450326,-515.81737397,0.00013835,2]
[351785642,1738787450335,-8672.5,0.00013835,2]
[351785643,1738787450345,-38079.26,0.00013835,2]
[351785644,1738787450354,-516.52,0.00013835,2]
[351785645,1738787450372,-188.0,0.00013835,2]
[351785646,1738787450381,-500.0,0.00013835,2]
[351785647,1738787450391,-506.19487016,0.00013835,2]
[351785648,1738787450401,-500.0,0.00013835,2]
[351785649,1738787450410,-1419.9,0.00013835,2]
[351785650,1738787450419,-151.0,0.00013835,2]
[351785651,1738787450428,-151.0,0.00013835,2]
[351785652,1738787450438,-151.0,0.00013835,2]
[351785653,1738787450448,-500.0,0.00013835,2]
[351785654,1738787450457,-1029.74,0.00013835,2]
[351785655,1738787450467,-2445.0,0.00013835,2]
[351785656,1738787450476,-500.0,0.00013835,2]
[351785657,1738787450486,-163.46763951,0.00013835,2]
[351785658,1738787450495,-723.41,0.00013835,2]
[351785659,1738787450504,-3299.81,0.00013835,2]
[351785660,1738787450513,-2867.16,0.00013835,2]
[351785661,1738787450527,-500.0,0.00013835,2]
[351785662,1738787450536,-500.0,0.00013835,2]
[351785663,1738787450545,-500.0,0.00013835,2]
[351785664,1738787450554,-500.0,0.00013835,2]
[351785665,1738787450565,-13406.5,0.00013835,2]
[351785666,1738787450576,-1144.73,0.00013835,2]
[351785667,1738787450585,-500.0,0.00013835,2]
[351785668,1738787450595,-500.0,0.00013835,2]
[351785669,1738787450604,-500.0,0.00013835,2]
[351785670,1738787450614,-966.04,0.00013835,2]
[351785671,1738787450623,-500.0,0.00013835,2]
[351785672,1738787450632,-500.0,0.00013835,2]
[351785673,1738787450641,-500.0,0.00013835,2]
[351785674,1738787450651,-500.0,0.00013835,2]
[351785675,1738787450661,-500.0,0.00013835,2]
[351785676,1738787450670,-1610.84,0.00013835,2]
[351785677,1738787450679,-500.0,0.00013835,2]
[351785678,1738787450689,-1683.71,0.00013835,2]
[351785679,1738787450699,-500.0,0.00013835,2]
[351785680,1738787450708,-3919.03,0.00013835,2]
[351785681,1738787450718,-389.98335779,0.00013835,2]
[351785682,1738787450727,-500.0,0.00013835,2]
[351785683,1738787450737,-151.0,0.00013835,2]
[351785684,1738787450747,-151.0,0.00013835,2]
[351785685,1738787450756,-151.0,0.00013835,2]
[351785686,1738787450766,-500.0,0.00013835,2]
[351785687,1738787450776,-560.09,0.00013835,2]
[351785688,1738787450785,-1063.17,0.00013835,2]
[351785689,1738787450794,-1223.14,0.00013835,2]
[351785690,1738787450804,-500.0,0.00013835,2]
[351785691,1738787450813,-500.0,0.00013835,2]
[351785692,1738787450940,-2800.15,0.00013835,2]
[351785693,1738787450950,-968.84,0.00013835,2]
[351785694,1738787450960,-6749.66,0.00013835,2]
[351785695,1738787450970,-151.0,0.00013835,2]
[351785696,1738787450980,-181.891938,0.00013835,2]
[351785697,1738787450990,-1182.99,0.00013835,2]
[351785698,1738787450999,-1292.34,0.00013835,2]
[351785699,1738787451008,-500.0,0.00013835,2]
[351785700,1738787451017,-500.0,0.00013835,2]
[351785701,1738787451028,-7003.11,0.00013835,2]
[351785702,1738787451037,-150.16573334,0.00013835,2]
[351785703,1738787451047,-500.0,0.00013835,2]
[351785704,1738787451056,-500.0,0.00013835,2]
[351785705,1738787451066,-500.0,0.00013835,2]
[351785706,1738787451077,-500.0,0.00013835,2]
[351785707,1738787451086,-576.77,0.00013835,2]
[351785708,1738787451095,-500.0,0.00013835,2]
[351785709,1738787451105,-8170.73,0.00013835,2]
[351785710,1738787451115,-500.0,0.00013835,2]
[351785711,1738787451124,-12661.45,0.00013835,2]
[351785712,1738787451134,-5301.82,0.00013835,2]
[351785713,1738787451144,-500.0,0.00013835,2]
[351785714,1738787451153,-377.10387859,0.00013835,2]
[351785715,1738787451162,-500.0,0.00013835,2]
[351785716,1738787451171,-1115.94,0.00013835,2]
[351785717,1738787451181,-644.58,0.00013835,2]
[351785718,1738787451190,-675.98,0.00013835,2]
[351785719,1738787451200,-500.0,0.00013835,2]
[351785720,1738787451209,-517.62,0.00013835,2]
[351785721,1738787451219,-500.0,0.00013835,2]
[351785722,1738787451228,-500.0,0.00013835,2]
[351785723,1738787451237,-465.4568436,0.00013835,2]
[351785724,1738787451247,-2066.59,0.00013835,2]
[351785725,1738787451256,-595.55,0.00013835,2]
[351785726,1738787451266,-500.0,0.00013835,2]
[351785727,1738787451275,-500.0,0.00013835,2]
[351785728,1738787451285,-500.0,0.00013835,2]
[351785729,1738787451295,-500.0,0.00013835,2]
[351785730,1738787451304,-650.5,0.00013835,2]
[351785731,1738787451313,-1008.57,0.00013835,2]
[351785732,1738787451326,-535.13,0.00013835,2]
[351785733,1738787451336,-500.0,0.00013835,2]
[351785734,1738787451345,-500.0,0.00013835,2]
[351785735,1738787451355,-2804.37,0.00013835,2]
[351785736,1738787451364,-968.02,0.00013835,2]
[351785737,1738787451374,-500.0,0.00013835,2]
[351785738,1738787451383,-3059.4,0.00013835,2]
[351785739,1738787451392,-2461.98,0.00013835,2]
[351785740,1738787451401,-500.0,0.00013835,2]
[351785741,1738787451411,-500.0,0.00013835,2]
[351785742,1738787451420,-500.0,0.00013835,2]
[351785743,1738787451429,-8316.21,0.00013835,2]
[351785744,1738787451439,-500.0,0.00013835,2]
[351785745,1738787451448,-607.6328422,0.00013835,2]
[351785746,1738787451458,-934.68,0.00013835,2]
[351785747,1738787451467,-500.0,0.00013835,2]
[351785748,1738787451476,-151.0,0.00013835,2]
[351785749,1738787451486,-151.0,0.00013835,2]
[351785750,1738787451495,-151.0,0.00013835,2]
[351785751,1738787451504,-654.31,0.00013835,2]
[351785752,1738787451514,-500.0,0.00013835,2]
[351785753,1738787451525,-500.0,0.00013835,2]
[351785754,1738787451534,-2746.19,0.00013835,2]
[351785755,1738787451544,-151.0,0.00013835,2]
[351785756,1738787451553,-245.96928196,0.00013835,2]
[351785757,1738787451564,-25631.46355511,0.00013835,2]
[351785758,1738787451845,-272.08,0.00013835,2]
[351785759,1738787451871,-1000.0,0.00013835,2]
[351785760,1738787452083,-501.7663596,0.00013698,2]
[351785761,1738787452092,-606.29413628,0.00013698,2]
[351785762,1738787452102,-1216.83472095,0.00013835,2]
[351785763,1738787452114,-101277.91172394,0.00013835,2]
[351785764,1738787452123,-500.0,0.00013835,2]
[351785765,1738787452133,-500.0,0.00013835,2]
[351785766,1738787452142,-500.0,0.00013835,2]
[351785767,1738787452152,-4070.0,0.00013835,2]
[351785768,1738787452161,-151.0,0.00013835,2]
[351785769,1738787452170,-159.0,0.00013848,2]
[351785770,1738787452179,-159.0,0.00013848,2]
[351785771,1738787452189,-159.0,0.00013848,2]
[351785772,1738787452199,-159.0,0.00013848,2]
[351785773,1738787452209,-1477.50337331,0.00013872,2]
[351785774,1738787452219,-174.93,0.00013872,2]
[351785775,1738787452229,-354.6451938,0.000139,2]
[351785776,1738787452238,-210.6913614,0.000139,2]
[351785777,1738787452248,-153.0,0.000139,2]
[351785778,1738787452258,-354.6451938,0.000139,2]
[351785779,1738787452268,-354.6451938,0.000139,2]
[351785780,1738787452278,-153.0,0.000139,2]
[351785781,1738787452287,-153.0,0.000139,2]
[351785782,1738787452296,-154.5151656,0.000139,2]
[351785783,1738787452306,-215.7177124,0.000139,2]
[351785784,1738787452316,-709.2903876,0.000139,2]
[351785785,1738787452328,-386.08140088,0.00013916,2]
[351785786,1738787452338,-151.0,0.00013971,2]
[351785787,1738787452347,-151.0,0.00013971,2]
[351785788,1738787452356,-241.832142,0.00013971,2]
[351785789,1738787452365,-241.832142,0.00013971,2]
[351785790,1738787452375,-151.0,0.00013971,2]
[351785791,1738787452384,-171.04240597,0.00013972,2]
[351785792,1738787452393,-328.845688,0.00013972,2]
[351785793,1738787452402,-328.845688,0.00013972,2]
[351785794,1738787452411,-328.845688,0.00013972,2]
[351785795,1738787452420,-328.845688,0.00013972,2]
[351785796,1738787452429,-563.28,0.00013972,2]
[351785797,1738787452439,-500.0,0.00013972,2]
[351785798,1738787452448,-500.0,0.00013972,2]
[351785799,1738787452458,-500.0,0.00013972,2]
[351785800,1738787452468,-500.0,0.00013972,2]
[351785801,1738787452477,-711.15,0.00013972,2]
[351785802,1738787452487,-553.21431376,0.00013972,2]
[351785803,1738787452496,-1574.79,0.00013972,2]
[351785804,1738787452505,-500.0,0.00013972,2]
[351785805,1738787452515,-500.0,0.00013972,2]
[351785806,1738787452526,-599.37,0.00013972,2]
[351785807,1738787452535,-500.0,0.00013972,2]
[351785808,1738787452544,-500.0,0.00013972,2]
[351785809,1738787452554,-188.974048,0.00013972,2]
[351785810,1738787452565,-277.9010432,0.00013972,2]
[351785811,1738787452575,-1904.59,0.00013972,2]
[351785812,1738787452584,-500.0,0.00013972,2]
[351785813,1738787452593,-961.25,0.00013972,2]
[351785814,1738787452604,-500.0,0.00013972,2]
[351785815,1738787452613,-151.0,0.00013972,2]
[351785816,1738787452622,-151.0,0.00013972,2]
[351785817,1738787452631,-792.16,0.00013972,2]
[351785818,1738787452640,-151.0,0.00013972,2]
[351785819,1738787452650,-657.84,0.00013972,2]
[351785820,1738787452659,-939.34,0.00013972,2]
[351785821,1738787452669,-500.0,0.00013972,2]
[351785822,1738787452678,-547.46551857,0.00013972,2]
[351785823,1738787452687,-500.0,0.00013972,2]
[351785824,1738787452697,-1000.0,0.00013972,2]
[351785825,1738787452832,-520.18,0.00013972,2]
[351785826,1738787452843,-500.0,0.00013972,2]
[351785827,1738787452853,-500.0,0.00013972,2]
[351785828,1738787452862,-500.0,0.00013972,2]
[351785829,1738787452872,-500.0,0.00013972,2]
[351785830,1738787452881,-500.0,0.00013972,2]
[351785831,1738787452891,-500.0,0.00013972,2]
[351785832,1738787452900,-500.0,0.00013972,2]
[351785833,1738787452910,-151.0,0.00013972,2]
[351785834,1738787452920,-151.0,0.00013972,2]
[351785835,1738787452930,-184.699613,0.00013972,2]
[351785836,1738787452940,-151.0,0.00013972,2]
[351785837,1738787452950,-151.0,0.00013972,2]
[351785838,1738787452960,-151.0,0.00013972,2]
[351785839,1738787452970,-500.0,0.00013972,2]
[351785840,1738787452979,-500.0,0.00013972,2]
[351785841,1738787452989,-151.0,0.00013972,2]
[351785842,1738787453000,-151.0,0.00013972,2]
[351785843,1738787453010,-151.0,0.00013972,2]
[351785844,1738787453021,-500.0,0.00013972,2]
[351785845,1738787453031,-500.0,0.00013972,2]
[351785846,1738787453042,-500.0,0.00013972,2]
[351785847,1738787453052,-500.0,0.00013972,2]
[351785848,1738787453063,-962.11,0.00013972,2]
[351785849,1738787453077,-500.0,0.00013972,2]
[351785850,1738787453088,-500.0,0.00013972,2]
[351785851,1738787453100,-500.0,0.00013972,2]
[351785852,1738787453111,-500.0,0.00013972,2]
[351785853,1738787453122,-591.33463904,0.00013972,2]
[351785854,1738787453132,-500.0,0.00013972,2]
[351785855,1738787453142,-500.0,0.00013972,2]
[351785856,1738787453153,-999.21,0.00013972,2]
[351785857,1738787453163,-500.0,0.00013972,2]
[351785858,1738787453173,-500.0,0.00013972,2]
[351785859,1738787453183,-1957.74,0.00013972,2]
[351785860,1738787453192,-500.0,0.00013972,2]
[351785861,1738787453202,-500.0,0.00013972,2]
[351785862,1738787453212,-697.25,0.00013972,2]
[351785863,1738787453221,-500.0,0.00013972,2]
[351785864,1738787453230,-500.0,0.00013972,2]
[351785865,1738787453240,-500.0,0.00013972,2]
[351785866,1738787453250,-500.0,0.00013972,2]
[351785867,1738787453261,-500.0,0.00013972,2]
[351785868,1738787453271,-1359.17,0.00013972,2]
[351785869,1738787453280,-842.43,0.00013972,2]
[351785870,1738787453290,-500.0,0.00013972,2]
[351785871,1738787453300,-500.0,0.00013972,2]
[351785872,1738787453309,-500.0,0.00013972,2]
[351785873,1738787453319,-478.71653944,0.00013972,2]
[351785874,1738787453333,-500.0,0.00013972,2]
[351785875,1738787453344,-685.73,0.00013972,2]
[351785876,1738787453355,-500.0,0.00013972,2]
[351785877,1738787453366,-500.0,0.00013972,2]
[351785878,1738787453377,-500.0,0.00013972,2]
[351785879,1738787453387,-500.0,0.00013972,2]
[351785880,1738787453397,-500.0,0.00013972,2]
[351785881,1738787453406,-500.0,0.00013972,2]
[351785882,1738787453417,-500.0,0.00013972,2]
[351785883,1738787453426,-500.0,0.00013972,2]
[351785884,1738787453436,-500.0,0.00013972,2]
[351785885,1738787453446,-568.17,0.00013972,2]
[351785886,1738787453456,-500.0,0.00013972,2]
[351785887,1738787453465,-943.46,0.00013972,2]
[351785888,1738787453475,-893.32,0.00013972,2]
[351785889,1738787453484,-500.0,0.00013972,2]
[351785890,1738787453493,-850.27,0.00013972,2]
[351785891,1738787453504,-693.98,0.00013972,2]
[351785892,1738787453514,-1066.38,0.00013972,2]
[351785893,1738787453528,-794.82,0.00013972,2]
[351785894,1738787453538,-698.19,0.00013972,2]
[351785895,1738787453548,-736.15,0.00013972,2]
[351785896,1738787453557,-650.1,0.00013972,2]
[351785897,1738787453568,-578.4,0.00013972,2]
[351785898,1738787453580,-617.06,0.00013972,2]
[351785899,1738787453589,-508.68,0.00013972,2]
[351785900,1738787453600,-500.0,0.00013972,2]
[351785901,1738787453610,-500.0,0.00013972,2]
[351785902,1738787453619,-500.0,0.00013972,2]
[351785903,1738787453628,-1922.93,0.00013972,2]
[351785904,1738787453638,-500.0,0.00013972,2]
[351785905,1738787453647,-500.0,0.00013972,2]
[351785906,1738787453657,-340.76899894,0.00013972,2]
[351785907,1738787453666,-2433.42,0.00013972,2]
[351785908,1738787453675,-500.0,0.00013972,2]
[351785909,1738787453685,-500.0,0.00013972,2]
[351785910,1738787453694,-500.0,0.00013972,2]
[351785911,1738787453704,-500.0,0.00013972,2]
[351785912,1738787453713,-500.0,0.00013972,2]
[351785913,1738787453722,-500.0,0.00013972,2]
[351785914,1738787453731,-500.0,0.00013972,2]
[351785915,1738787453741,-554.04,0.00013972,2]
[351785916,1738787453750,-500.0,0.00013972,2]
[351785917,1738787453759,-500.0,0.00013972,2]
[351785918,1738787453769,-912.41,0.00013972,2]
[351785919,1738787453778,-500.0,0.00013972,2]
[351785920,1738787453787,-500.0,0.00013972,2]
[351785921,1738787453797,-2051.25,0.00013972,2]
[351785922,1738787453806,-500.0,0.00013972,2]
[351785923,1738787453816,-527.02674886,0.00013972,2]
[351785924,1738787453826,-500.0,0.00013972,2]
[351785925,1738787453835,-2563.96,0.00013972,2]
[351785926,1738787453844,-516.64,0.00013972,2]
[351785927,1738787453853,-500.0,0.00013972,2]
[351785928,1738787453863,-825.1,0.00013972,2]
[351785929,1738787453872,-500.0,0.00013972,2]
[351785930,1738787453882,-161.90339948,0.00013972,2]
[351785931,1738787453899,-338.09660052,0.00013972,2]
[351785932,1738787453909,-500.0,0.00013972,2]
[351785933,1738787453918,-151.0,0.00013972,2]
[351785934,1738787453928,-500.0,0.00013972,2]
[351785935,1738787453937,-500.0,0.00013972,2]
[351785936,1738787453947,-904.14,0.00013972,2]
[351785937,1738787453956,-785.44,0.00013972,2]
[351785938,1738787453966,-500.0,0.00013972,2]
[351785939,1738787453976,-1603.95,0.00013972,2]
[351785940,1738787453985,-500.0,0.00013972,2]
[351785941,1738787453995,-575.97,0.00013972,2]
[351785942,1738787454004,-534.5336951,0.00013972,2]
[351785943,1738787454013,-1184.64,0.00013972,2]
[351785944,1738787454023,-500.0,0.00013972,2]
[351785945,1738787454033,-1353.34,0.00013972,2]
[351785946,1738787454042,-500.0,0.00013972,2]
[351785947,1738787454052,-500.0,0.00013972,2]
[351785948,1738787454061,-544.53,0.00013972,2]
[351785949,1738787454072,-500.0,0.00013972,2]
[351785950,1738787454081,-500.0,0.00013972,2]
[351785951,1738787454090,-500.0,0.00013972,2]
[351785952,1738787454100,-725.92,0.00013972,2]
[351785953,1738787454109,-625.78,0.00013972,2]
[351785954,1738787454118,-1361.49,0.00013972,2]
[351785955,1738787454128,-304.86498828,0.00013972,2]
[351785956,1738787454138,-2514.77,0.00013972,2]
[351785957,1738787454149,-500.0,0.00013972,2]
[351785958,1738787454159,-500.0,0.00013972,2]
[351785959,1738787454168,-295.79745008,0.00013972,2]
[351785960,1738787454181,-655.74254992,0.00013972,2]
[351785961,1738787454190,-560.82,0.00013972,2]
[351785962,1738787454200,-752.75,0.00013972,2]
[351785963,1738787454210,-770.26,0.00013972,2]
[351785964,1738787454220,-500.0,0.00013972,2]
[351785965,1738787454229,-151.0,0.00013972,2]
[351785966,1738787454240,-151.0,0.00013972,2]
[351785967,1738787454249,-236.3467595,0.00013972,2]
[351785968,1738787454734,-531.25175389,0.00013698,2]
[351785969,1738787454744,-500.0,0.00013698,2]
[351785970,1738787454754,-500.0,0.00013698,2]
[351785971,1738787454764,-3922.9032405,0.00013972,2]
[351785972,1738787454773,-151.0,0.00013972,2]